fUSD/lending_fUSD_20260315
["ID","MTS","AMOUNT","RATE_DAILY","PERIOD"]
[408415387,1773586233961,-1000.0,0.00015581,2]
[408415388,1773586233971,-1000.0,0.00015581,2]
[408415389,1773586233980,-1000.0,0.00015581,2]
[408415390,1773586233990,-1000.0,0.00015581,2]
[408415391,1773586234001,-1000.0,0.00015581,2]
[408415392,1773586234011,-1000.0,0.00015581,2]
[408415393,1773586234021,-1000.0,0.00015581,2]
[408415394,1773586234031,-683.012,0.00015581,2]
[408415395,1773586234040,-2868.27,0.00015631,2]
[408415396,1773586234049,-200.0,0.00015634,2]
[408415397,1773586234059,-487.15118,0.0001564,2]
[408415398,1773586234068,-487.15119,0.0001564,2]
[408415399,1773586234077,-487.15118,0.0001564,2]
[408415400,1773586234086,-487.15119,0.0001564,2]
[408415401,1773586234096,-487.15119,0.0001564,2]
[408415402,1773586234105,-487.15118,0.0001564,2]
[408415403,1773586234114,-151.0,0.0001568,2]
[408415404,1773586234123,-151.0,0.0001568,2]
[408415405,1773586234132,-166.66,0.00015691,2]
[408415406,1773586234141,-166.7,0.00015808,2]
[408415407,1773586234150,-500.0,0.00015821,2]
[408415408,1773586234160,-500.0,0.00015821,2]
[408415409,1773586234169,-1166.77,0.00015883,2]
[408415410,1773586234179,-165.42,0.00015887,2]
[408415411,1773586234188,-2000.0,0.0001589,2]
[408415412,1773586234198,-404.315641,0.00016015,7]
[408415413,1773586234207,-500.0,0.00016027,2]
[408415414,1773586234217,-350.0,0.00016029,2]
[408415415,1773586234226,-500.0,0.00016086,2]
[408415416,1773586234236,-500.0,0.00016086,2]
[408415417,1773586234245,-500.0,0.00016086,2]
[408415418,1773586234255,-500.0,0.00016086,2]
[408415419,1773586234264,-500.0,0.00016086,2]
[408415420,1773586234273,-500.0,0.00016086,2]
[408415421,1773586234282,-750.0,0.00016086,2]
[408415422,1773586234292,-500.0,0.00016086,2]
[408415423,1773586234301,-500.0,0.00016086,2]
[408415424,1773586234311,-750.0,0.00016086,2]
[408415425,1773586234320,-151.0,0.00016086,2]
[408415426,1773586234329,-500.0,0.00016086,2]
[408415427,1773586234339,-750.0,0.00016086,2]
[408415428,1773586234348,-500.0,0.00016086,2]
[408415429,1773586234358,-750.0,0.00016086,2]
[408415430,1773586234367,-500.0,0.00016086,2]
[408415431,1773586234376,-500.0,0.00016086,2]
[408415432,1773586234386,-500.0,0.00016086,2]
[408415433,1773586234395,-750.0,0.00016086,2]
[408415434,1773586234405,-750.0,0.00016086,2]
[408415435,1773586234414,-500.0,0.00016086,2]
[408415436,1773586234423,-500.0,0.00016086,2]
[408415437,1773586234431,-750.0,0.00016086,2]
[408415438,1773586234441,-500.0,0.00016086,2]
[408415439,1773586234450,-500.0,0.00016086,2]
[408415440,1773586234459,-750.0,0.00016086,2]
[408415441,1773586234468,-500.0,0.00016086,2]
[408415442,1773586234477,-750.0,0.00016086,2]
[408415443,1773586234486,-750.0,0.00016086,2]
[408415444,1773586234495,-500.0,0.00016086,2]
[408415445,1773586234504,-750.0,0.00016086,2]
[408415446,1773586234513,-500.0,0.00016086,2]
[408415447,1773586234522,-500.0,0.00016086,2]
[408415448,1773586234531,-208.92109869,0.00016086,2]
[408415449,1773586234540,-500.0,0.00016086,2]
[408415450,1773586234550,-500.0,0.00016086,2]
[408415451,1773586234560,-500.0,0.00016086,2]
[408415452,1773586234569,-500.0,0.00016086,2]
[408415453,1773586234578,-500.0,0.00016086,2]
[408415454,1773586234587,-500.0,0.00016086,2]
[408415455,1773586234595,-500.0,0.00016086,2]
[408415456,1773586234604,-500.0,0.00016086,2]
[408415457,1773586234613,-500.0,0.00016086,2]
[408415458,1773586234621,-500.0,0.00016086,2]
[408415459,1773586234630,-417.38708959,0.00016086,2]
[408415460,1773586234639,-1624.93,0.00016116,2]
[408415461,1773586234649,-13682.15,0.00016116,2]
[408415462,1773586234658,-151.0,0.00016141,2]
[408415463,1773586234668,-166.66,0.00016193,2]
[408415464,1773586234677,-340.828062,0.00016195,7]
[408415465,1773586234686,-151.0,0.00016196,2]
[408415466,1773586234695,-865.65694915,0.00016209,2]
[408415470,1773586238382,-1134.34305085,0.00016209,2]
[408415471,1773586238392,-151.0,0.00016209,2]
[408415472,1773586238402,-207.01766239,0.00016209,2]
[408415473,1773586238412,-151.0,0.00016251,2]
[408415474,1773586238423,-151.0,0.00016306,2]
[408415475,1773586238434,-68.14568186,0.00016312,2]
[408415476,1773586238446,-444.4034036,0.00016312,2]
[408415477,1773586238459,-604.44900637,0.00016312,2]
[408415478,1773586238474,-49.77190817,0.00016312,2]
[408415479,1773586238484,-675.82810156,0.00016342,2]
[408415482,1773586240580,-2192.44189844,0.00016342,2]
[408415483,1773586240591,-151.0,0.00016342,2]
[408415484,1773586240766,-350.0,0.00016347,2]
[408415485,1773586240776,-176.66,0.00016356,2]
[408415486,1773586240787,-151.0,0.00016361,2]
[408415487,1773586240796,-220.535806,0.00016378,7]
[408415488,1773586240806,-151.0,0.00016416,2]
[408415489,1773586240817,-358.26939486,0.00016427,2]
[408415490,1773586240827,-350.0,0.00016444,2]
[408415491,1773586240836,-151.0,0.00016471,2]
[408415492,1773586240845,-587.0,0.00016522,2]
[408415493,1773586240855,-6581.8607403,0.00016526,2]
[408415494,1773586240864,-151.0,0.00016526,2]
[408415495,1773586240873,-1468.611641,0.00016538,2]
[408415496,1773586240883,-2351.0,0.00016589,2]
[408415497,1773586240892,-150.0,0.00016633,2]
[408415498,1773586240902,-166.66,0.00016694,2]
[408415499,1773586240911,-166.67,0.00016712,2]
[408415500,1773586240923,-559.58,0.00016723,2]
[408415501,1773586240932,-165.42,0.0001677,2]
[408415502,1773586240941,-471.87,0.00016919,2]
[408415503,1773586240950,-471.87,0.00016934,2]
[408415504,1773586240959,-423.24,0.00016936,2]
[408415505,1773586240967,-471.87413767,0.00016937,2]
[408415506,1773586240976,-471.87,0.00016938,2]
[408415507,1773586240985,-1468.611641,0.0001694,2]
[408415508,1773586240994,-327.6915506,0.00016953,2]
[408415509,1773586241004,-423.24,0.00016978,2]
[408415510,1773586241013,-300.0,0.00017,2]
[408415511,1773586241024,-517.0,0.00017,2]
[408415512,1773586241034,-2868.27,0.00017052,2]
[408415513,1773586241044,-2373.0,0.0001712,5]
[408415514,1773586241054,-250.0,0.00017124,2]
[408415515,1773586241064,-155.0,0.00017137,2]
[408415516,1773586241074,-184.51,0.00017139,2]
[408415517,1773586241083,-12353.16957769,0.00017163,2]
[408415520,1773586241093,-157.0,0.00017189,3]
[408415522,1773586241102,-2365.0,0.00017195,5]
[408415523,1773586241111,-166.66,0.00017196,2]
[408415525,1773586241121,-2824.67207155,0.00017217,2]
[408415527,1773586241130,-423.26,0.00017233,2]
[408415529,1773586241140,-933.0832,0.00017628,2]
[408415532,1773586241149,-165.42,0.00017653,2]
[408415533,1773586241158,-166.66,0.00017697,2]
[408415535,1773586241168,-277.60645891,0.00017706,2]
[408415538,1773586241177,-500.0,0.00017706,2]
[408415539,1773586241186,-500.0,0.00017706,2]
[408415541,1773586241195,-151.0,0.00017725,2]
[408415543,1773586241205,-500.0,0.00017727,2]
[408415544,1773586241216,-500.0,0.00017727,2]
[408415545,1773586241226,-500.0,0.00017727,2]
[408415546,1773586241236,-500.0,0.00017727,2]
[408415547,1773586241245,-500.0,0.00017727,2]
[408415548,1773586241254,-500.0,0.00017727,2]
[408415549,1773586241265,-299.99,0.00017728,4]
[408415550,1773586241275,-9999.99,0.00017728,2]
[408415551,1773586241285,-15000.02,0.00017728,2]
[408415552,1773586241295,-9999.99,0.00017728,2]
[408415553,1773586241315,-1842.25,0.00017728,2]
[408415554,1773586241327,-150.99,0.00017728,2]
[408415555,1773586241337,-500.0,0.00017773,2]
[408415556,1773586241347,-500.0,0.00017773,2]
[408415557,1773586241357,-164.32927228,0.00017773,2]
[408415558,1773586241367,-164.55378279,0.00017773,2]
[408415559,1773586241376,-161.4370954,0.00017773,2]
[408415560,1773586241386,-151.0,0.00017773,2]
[408415561,1773586241396,-151.0,0.00017773,2]
[408415562,1773586241406,-283.168135,0.00017773,2]
[408415563,1773586241416,-2369.0,0.00017883,5]
[408415564,1773586241425,-159.316698,0.00017911,2]
[408415565,1773586241435,-6598.07315124,0.00017954,2]
[408415566,1773586241444,-151.0,0.00017954,2]
[408415567,1773586241454,-2000.0,0.0001801,2]
[408415568,1773586241464,-193.975735,0.0001801,2]
[408415569,1773586241473,-823.0,0.00018105,2]
[408415570,1773586241483,-3292.0,0.00018248,2]
[408415571,1773586241492,-1363.17,0.000183,2]
[408415572,1773586241502,-7108.49,0.00018356,2]
[408415573,1773586241511,-164.0,0.000184,2]
[408415574,1773586241520,-151.0,0.00018493,2]
[408415575,1773586241530,-151.0,0.00018493,2]
[408415576,1773586241540,-151.0,0.00018493,2]
[408415577,1773586241550,-165.42,0.00018535,2]
[408415578,1773586241559,-500.0,0.000186,2]
[408415579,1773586241569,-500.0,0.000186,2]
[408415580,1773586241579,-500.0,0.000186,2]
[408415581,1773586241588,-500.0,0.000186,2]
[408415582,1773586241598,-500.0,0.000186,2]
[408415583,1773586241607,-500.0,0.000186,2]
[408415584,1773586241617,-500.0,0.000186,2]
[408415585,1773586241627,-411.871576,0.00018624,7]
[408415586,1773586241636,-3013.25297291,0.00018902,4]
[408415587,1773586241646,-1118.24702955,0.00018994,2]
[408415588,1773586241655,-151.0,0.00018994,2]
[408415589,1773586241665,-151.0,0.00018994,2]
[408415590,1773586241675,-151.0,0.00018994,2]
[408415591,1773586241684,-7725.17211558,0.00019054,2]
[408415592,1773586241693,-8380.5344261,0.00019142,2]
[408415593,1773586241702,-151.0,0.00019178,2]
[408415594,1773586241713,-151.0,0.00019178,2]
[408415595,1773586241722,-151.0,0.00019178,2]
[408415596,1773586241732,-151.1911095,0.00019178,2]
[408415597,1773586241742,-150.22155762,0.00019178,2]
[408415598,1773586241754,-2000.0,0.000192,2]
[408415599,1773586241772,-157.0,0.00019353,3]
[408415600,1773586241788,-165.42,0.00019418,2]
[408415601,1773586241805,-360.0,0.000195,2]
[408415602,1773586241822,-1180.47993758,0.000195,2]
[408415603,1773586241831,-1518.0,0.00019656,2]
[408415604,1773586241840,-300.0,0.00019656,2]
[408415605,1773586241850,-1000.0,0.000198,7]
[408415606,1773586241859,-2000.0,0.00019811,2]
[408415607,1773586241869,-1152.0,0.0001984,2]
[408415608,1773586241878,-250.0,0.0001989,4]
[408415609,1773586241888,-166.56,0.000199,3]
[408415610,1773586241898,-269.55189866,0.000199,2]
[408415611,1773586241907,-596.15576869,0.000199,2]
[408415612,1773586241917,-2000.0,0.000199,7]
[408415613,1773586241927,-3622.8222,0.000199,2]
[408415614,1773586241936,-1045.7179241,0.000199,2]
[408415615,1773586241946,-151.0,0.000199,2]
[408415616,1773586241956,-151.0,0.000199,2]
[408415617,1773586241965,-151.0,0.000199,2]
[408415618,1773586241975,-4610.0,0.00019973,2]
[408415619,1773586241984,-190.30839554,0.0001999,2]
[408415620,1773586241993,-1050.40077379,0.00019999,5]
[408415621,1773586242003,-500.0,0.00019999,2]
[408415622,1773586242012,-500.0,0.00019999,2]
[408415623,1773586242021,-500.0,0.00019999,2]
[408415624,1773586242031,-500.0,0.00019999,2]
[408415625,1773586242041,-508.76,0.00019999,2]
[408415626,1773586242050,-500.0,0.00019999,2]
[408415627,1773586242059,-500.0,0.00019999,2]
[408415628,1773586242069,-500.0,0.00019999,2]
[408415629,1773586242078,-500.0,0.00019999,2]
[408415630,1773586242087,-500.0,0.00019999,2]
[408415631,1773586242096,-500.0,0.00019999,2]
[408415632,1773586242117,-500.0,0.00019999,2]
[408415633,1773586242137,-500.0,0.00019999,2]
[408415634,1773586242150,-500.0,0.00019999,2]
[408415635,1773586242160,-500.0,0.00019999,2]
[408415636,1773586242171,-500.0,0.00019999,2]
[408415637,1773586242181,-500.0,0.00019999,2]
[408415638,1773586242193,-500.0,0.00019999,2]
[408415639,1773586242205,-500.0,0.00019999,2]
[408415640,1773586242214,-500.0,0.00019999,2]
[408415641,1773586242225,-500.0,0.00019999,2]
[408415642,1773586242237,-500.0,0.00019999,2]
[408415643,1773586242248,-190.30638221,0.0002,2]
[408415644,1773586242257,-38525.93343029,0.0002,2]
[408415645,1773586242271,-34000.5,0.0002,2]
[408415646,1773586242311,-150835.15110124,0.0002,2]
[408415647,1773586242320,-162.0,0.0002,2]
[408415648,1773586242329,-172.6439,0.0002,2]
[408415649,1773586242338,-284093.17949652,0.0002,2]
[408415650,1773586242347,-362439.92343245,0.0002,2]
[408415651,1773586242356,-1127.45575822,0.0002,2]
[408415652,1773586242366,-205.177098,0.0002,2]
[408415653,1773586242375,-205.177098,0.0002,2]
[408415654,1773586242384,-205.177098,0.0002,2]
[408415655,1773586242395,-205.177098,0.0002,2]
[408415656,1773586242405,-205.177098,0.0002,2]
[408415657,1773586242416,-205.177098,0.0002,2]
[408415658,1773586242425,-205.177098,0.0002,2]
[408415659,1773586242434,-205.177098,0.0002,2]
[408415660,1773586242443,-205.177098,0.0002,2]
[408415661,1773586242452,-205.177098,0.0002,2]
[408415662,1773586242461,-205.177098,0.0002,2]
[408415663,1773586242471,-205.177098,0.0002,2]
[408415664,1773586242480,-318.0,0.0002,2]
[408415665,1773586242489,-151.0,0.0002,2]
[408415666,1773586242499,-151.0,0.0002,2]
[408415667,1773586242508,-151.0,0.0002,2]
[408415668,1773586242517,-151.0,0.0002,2]
[408415669,1773586242527,-151.0,0.0002,2]
[408415670,1773586242537,-151.0,0.0002,2]
[408415671,1773586242546,-500.0,0.0002,2]
[408415672,1773586242555,-500.0,0.0002,2]
[408415673,1773586242564,-151.0,0.0002,2]
[408415674,1773586242574,-151.0,0.0002,2]
[408415675,1773586242583,-151.0,0.0002,2]
[408415676,1773586242592,-151.0,0.0002,2]
[408415677,1773586242602,-151.0,0.0002,2]
[408415678,1773586242612,-151.0,0.0002,2]
[408415679,1773586242622,-151.0,0.0002,2]
[408415680,1773586242631,-256.242297,0.0002,2]
[408415681,1773586242641,-500.0,0.0002,2]
[408415682,1773586242651,-500.0,0.0002,2]
[408415683,1773586242660,-155.911522,0.0002,2]
[408415684,1773586242673,-295.0,0.0002,2]
[408415685,1773586242683,-151.0,0.0002,2]
[408415686,1773586242693,-151.0,0.0002,2]
[408415687,1773586242702,-151.0,0.0002,2]
[408415688,1773586242713,-151.0,0.0002,2]
[408415689,1773586242723,-151.0,0.0002,2]
[408415690,1773586242733,-151.0,0.0002,2]
[408415691,1773586242743,-300.562419,0.0002,2]
[408415692,1773586242755,-12353.16957769,0.00020042,2]
[408415693,1773586242766,-215.0,0.00020073,2]
[408415694,1773586242775,-1800.0,0.000202,2]
[408415695,1773586242786,-165.42,0.000203,2]
[408415696,1773586242795,-373.49,0.00020535,2]
[408415697,1773586242805,-158.72,0.00020548,2]
[408415698,1773586242815,-184.51,0.00020566,2]
[408415699,1773586242826,-191.0,0.000206,7]
[408415700,1773586242835,-2283.69,0.00020715,2]
[408415701,1773586242844,-6598.07315124,0.00020735,2]
[408415702,1773586242854,-255.0,0.00020829,7]
[408415703,1773586242864,-150.0,0.00020829,7]
[408415704,1773586242873,-150.0,0.00020829,7]
[408415705,1773586242882,-150.0,0.00020829,7]
[408415706,1773586242891,-157.0,0.00020829,7]
[408415707,1773586242900,-150.0,0.00020829,7]
[408415708,1773586242909,-266.0,0.00020829,7]
[408415709,1773586242919,-160.0,0.00021085,2]
[408415710,1773586242928,-469.87233333,0.00021085,2]
[408415711,1773586242938,-150.0,0.00021147,7]
[408415712,1773586242947,-150.0,0.00021147,7]
[408415713,1773586242956,-150.0,0.00021147,7]
[408415714,1773586242966,-162.0,0.00021147,7]
[408415715,1773586242975,-150.0,0.00021147,7]
[408415716,1773586242985,-156.0,0.00021147,7]
[408415717,1773586242994,-150.0,0.00021147,7]
[408415718,1773586243003,-150.0,0.00021147,7]
[408415719,1773586243013,-150.0,0.00021147,7]
[408415720,1773586243023,-150.0,0.00021147,7]
[408415721,1773586243033,-160.0,0.00021147,7]
[408415722,1773586243043,-165.42,0.00021183,2]
[408415723,1773586243053,-879.98,0.00021197,2]
[408415724,1773586243063,-1969.0,0.000212,3]
[408415725,1773586243073,-11157.75706317,0.000215,2]
[408415726,1773586243084,-170.0,0.00021518,3]
[408415727,1773586243094,-157.0,0.00021518,3]
[408415728,1773586243103,-2000.0,0.00021611,2]
[408415729,1773586243112,-1613.0,0.00021742,2]
[408415730,1773586243121,-939.0,0.00021885,2]
[408415731,1773586243130,-1050.4007738,0.00021916,5]
[408415732,1773586243139,-2560.21,0.00021917,2]
[408415733,1773586243148,-2560.21,0.00021917,2]
[408415734,1773586243158,-2560.21,0.00021917,2]
[408415735,1773586243167,-2560.21,0.00021917,2]
[408415737,1773586243177,-2560.21,0.00021917,2]
[408415739,1773586243186,-2560.21,0.00021917,2]
[408415740,1773586243195,-158.04,0.00021918,2]
[408415742,1773586243204,-5000.0,0.00021918,2]
[408415743,1773586243213,-151.0,0.00021918,2]
[408415744,1773586243223,-3052.76,0.00021918,2]
[408415745,1773586243235,-151.0,0.00021918,2]
[408415746,1773586243244,-151.00001,0.00021918,2]
[408415747,1773586243254,-154.0,0.00022,2]
[408415748,1773586243263,-517.0,0.0002225,6]
[408415749,1773586243272,-3390.34778752,0.00022272,12]
[408415750,1773586243282,-5154.04235341,0.000225,2]
[408415751,1773586243292,-937.0,0.00022527,2]
[408415752,1773586243300,-732.216135,0.00022673,14]
[408415753,1773586243310,-2000.0,0.000229,2]
[408415754,1773586243319,-12353.16957769,0.00022922,2]
[408415755,1773586243330,-5041.42958706,0.00023,2]
[408415756,1773586243339,-154.0,0.00023,2]
[408415757,1773586243349,-771.0,0.00023018,2]
[408415758,1773586243358,-7725.17211558,0.00023029,2]
[408415759,1773586243368,-771.0,0.0002315,2]
[408415760,1773586243377,-771.0,0.00023153,2]
[408415761,1773586243387,-771.0,0.0002316,2]
[408415762,1773586243397,-771.0,0.00023161,2]
[408415763,1773586243407,-3917.15,0.00023181,2]
[408415764,1773586243418,-2000.0,0.000232,2]
[408415765,1773586243431,-937.0,0.00023235,2]
[408415766,1773586243441,-14551.2,0.00023359,2]
[408415767,1773586243450,-771.0,0.00023378,2]
[408415768,1773586243459,-771.0,0.00023387,2]
[408415769,1773586243468,-771.0,0.00023444,2]
[408415770,1773586243478,-771.0,0.00023468,2]
[408415771,1773586243489,-6598.07315124,0.00023515,2]
[408415772,1773586243498,-771.0,0.00023585,2]
[408415773,1773586243508,-157.0,0.00023683,3]
[408415774,1773586243518,-151.0,0.00023692,2]
[408415775,1773586243527,-151.0,0.00023692,2]
[408415776,1773586243537,-771.0,0.00023728,2]
[408415777,1773586243547,-771.0,0.00023733,2]
[408415778,1773586243557,-151.0,0.00023749,2]
[408415779,1773586243567,-151.0,0.00023749,2]
[408415780,1773586243577,-771.0,0.00023749,2]
[408415781,1773586243586,-771.0,0.00023777,2]
[408415782,1773586243596,-771.0,0.00023803,2]
[408415783,1773586243606,-2258.0,0.00023825,2]
[408415784,1773586243615,-1974.038,0.00023896,5]
[408415785,1773586243624,-154.0,0.00024,2]
[408415786,1773586243633,-667.0,0.00024229,10]
[408415787,1773586243642,-12927.0,0.00024229,10]
[408415788,1773586243651,-205.177098,0.00024229,2]
[408415789,1773586243660,-205.177098,0.00024229,2]
[408415790,1773586243669,-205.177098,0.00024229,2]
[408415791,1773586243679,-205.177098,0.00024229,2]
[408415792,1773586243688,-3600.0,0.00024384,120]
[408415793,1773586243697,-269.55189864,0.00024506,2]
[408415794,1773586243707,-469.87233333,0.000246,10]
[408415795,1773586243716,-308.15210792,0.00024645,2]
[408415796,1773586243726,-167.38,0.00024658,2]
[408415797,1773586243735,-1000.0,0.00024658,2]
[408415798,1773586243746,-150.0,0.00024658,2]
[408415799,1773586243757,-160.4878236,0.00024753,2]
[408415800,1773586243767,-2651.95954893,0.00024769,4]
[408415801,1773586243776,-158.04,0.00024853,2]
[408415802,1773586243786,-500.0,0.00024899,2]
[408415803,1773586243795,-500.0,0.00024899,2]
[408415804,1773586243805,-2560.21,0.00024899,2]
[408415805,1773586243816,-199662.877411,0.000249,3]
[408415806,1773586243825,-150.0,0.00025,2]
[408415807,1773586244003,-501.40106128,0.00025,30]
[408415808,1773586244014,-500.0,0.00025,30]
[408415809,1773586244023,-500.0,0.00025,30]
[408415810,1773586244032,-500.0,0.00025,30]
[408415811,1773586244042,-500.0,0.00025,30]
[408415812,1773586244051,-500.0,0.00025,30]
[408415813,1773586244060,-500.0,0.00025,30]
[408415814,1773586244069,-500.0,0.00025,30]
[408415815,1773586244079,-503.02078764,0.00025,30]
[408415816,1773586244088,-500.0,0.00025,30]
[408415817,1773586244097,-500.0,0.00025,30]
[408415818,1773586244107,-500.0,0.00025,30]
[408415819,1773586244116,-500.0,0.00025,30]
[408415820,1773586244125,-500.0,0.00025,30]
[408415821,1773586244135,-500.0,0.00025,30]
[408415822,1773586244144,-500.0,0.00025,30]
[408415823,1773586244153,-500.0,0.00025,30]
[408415824,1773586244163,-500.0,0.00025,30]
[408415825,1773586244172,-500.0,0.00025,30]
[408415826,1773586244181,-1119.1827055,0.00025,2]
[408415827,1773586244190,-208.49204698,0.00025,2]
[408415828,1773586244200,-1793.29856408,0.00025,2]
[408415829,1773586244210,-540.0,0.00025,2]
[408415830,1773586244221,-613.71167137,0.00025,2]
[408415831,1773586244231,-168.09158122,0.00025,2]
[408415832,1773586244240,-500.0,0.00025,30]
[408415833,1773586244250,-500.0,0.00025,30]
[408415834,1773586244260,-500.0,0.00025,30]
[408415835,1773586244270,-500.0,0.00025,30]
[408415836,1773586244279,-500.0,0.00025,30]
[408415837,1773586244288,-500.0,0.00025,30]
[408415838,1773586244298,-500.0,0.00025,30]
[408415839,1773586244307,-500.0,0.00025,30]
[408415840,1773586244316,-500.0,0.00025,30]
[408415841,1773586244329,-500.0,0.00025,30]
[408415842,1773586244339,-500.0,0.00025,30]
[408415843,1773586244348,-500.0,0.00025,30]
[408415844,1773586244357,-604.37882443,0.00025,30]
[408415845,1773586244367,-500.0,0.00025,30]
[408415846,1773586244376,-500.0,0.00025,30]
[408415847,1773586244386,-154.0,0.00025,2]
[408415848,1773586244396,-469.87233333,0.00025,30]
[408415849,1773586244406,-469.87233333,0.00025,3]
[408415850,1773586244416,-150.0,0.00025292,2]
[408415851,1773586244425,-150.0,0.00025292,2]
[408415852,1773586244435,-150.0,0.00025292,2]
[408415853,1773586244444,-150.0,0.00025292,2]
[408415854,1773586244453,-157.0,0.00025292,2]
[408415855,1773586244462,-150.0,0.00025443,14]
[408415856,1773586244471,-190.0,0.00025443,14]
[408415857,1773586244481,-2022.0,0.000255,2]
[408415858,1773586244491,-469.87233333,0.000256,3]
[408415859,1773586244500,-3578.9247904,0.00025642,20]
[408415860,1773586244510,-510.0,0.00025677,2]
[408415861,1773586244519,-12353.16957769,0.00025802,2]
[408415862,1773586244529,-208.0,0.0002583,14]
[408415863,1773586244538,-150.0,0.0002583,14]
[408415864,1773586244547,-150.0,0.0002583,14]
[408415865,1773586244556,-197.0,0.0002583,14]
[408415866,1773586244566,-157.0,0.00025847,3]
[408415867,1773586244576,-150.0,0.0002589,2]
[408415868,1773586244586,-3000.0,0.000259,9]
[408415869,1773586244597,-463.0,0.00025902,2]
[408415870,1773586244607,-10393.71,0.00025902,2]
[408415871,1773586244617,-154.0,0.00026,2]
[408415872,1773586244628,-3162.0,0.00026108,2]
[408415873,1773586244638,-150.0,0.00026224,14]
[408415874,1773586244648,-150.0,0.00026224,14]
[408415875,1773586244657,-150.0,0.00026224,14]
[408415876,1773586244667,-172.0,0.00026224,14]
[408415877,1773586244677,-6598.07315124,0.00026296,2]
[408415878,1773586244687,-4351.0,0.00026384,2]
[408415879,1773586244696,-152.0,0.000264,3]
[408415880,1773586244706,-469.87233333,0.000264,3]
[408415881,1773586244715,-26521.0845572,0.000264,2]
[408415882,1773586244728,-771.0,0.00026402,2]
[408415883,1773586244738,-205.177098,0.00026448,2]
[408415884,1773586244750,-205.177098,0.00026448,2]
[408415885,1773586244759,-205.177098,0.00026448,2]
[408415886,1773586244769,-205.177095,0.00026448,2]
[408415887,1773586244779,-1343.0,0.00026448,2]
[408415888,1773586244789,-3510.0,0.00026448,2]
[408415889,1773586244799,-630.245,0.00026448,2]
[408415890,1773586244808,-1043.0,0.00026448,2]
[408415891,1773586244817,-1260.0,0.00026448,2]
[408415892,1773586244829,-923.0,0.00026448,2]
[408415893,1773586244838,-425.351,0.00026448,2]
[408415894,1773586244847,-2555.821,0.00026448,2]
[408415895,1773586244856,-6001.0,0.00026448,2]
[408415896,1773586244865,-2000.0,0.000266,2]
[408415897,1773586244875,-150.0,0.00026623,14]
[408415898,1773586244884,-150.0,0.00026623,14]
[408415899,1773586244893,-201.0,0.00026623,14]
[408415900,1773586244902,-250.0,0.00026623,14]
[408415901,1773586244912,-154.0,0.00027,2]
[408415902,1773586244921,-7725.17211558,0.00027003,2]
[408415903,1773586244930,-3709.93,0.00027123,2]
[408415904,1773586244939,-771.0,0.00027169,2]
[408415905,1773586244948,-150.0,0.00027185,2]
[408415906,1773586244957,-16723.0971258,0.00027255,2]
[408415907,1773586244966,-211.65343813,0.0002737,2]